fUSD/lending_fUSD_20240215
["ID","MTS","AMOUNT","RATE_DAILY","PERIOD"]
[314162204,1708033843002,-500.0,0.0003863,7]
[314162205,1708033843012,-500.0,0.0003863,7]
[314162206,1708033843022,-155.12122493,0.0003863,7]
[314162207,1708033843032,-500.0,0.0003863,7]
[314162208,1708033843041,-500.0,0.0003863,7]
[314162209,1708033843051,-500.0,0.0003863,7]
[314162210,1708033843061,-500.0,0.0003863,7]
[314162211,1708033843071,-500.0,0.0003863,7]
[314162212,1708033843080,-500.0,0.0003863,7]
[314162213,1708033843090,-500.0,0.0003863,7]
[314162214,1708033843101,-547.41,0.0003863,7]
[314162215,1708033843111,-500.0,0.0003863,7]
[314162216,1708033843121,-500.0,0.0003863,7]
[314162217,1708033843130,-500.0,0.0003863,7]
[314162218,1708033843140,-500.0,0.0003863,7]
[314162219,1708033843149,-500.0,0.0003863,7]
[314162220,1708033843159,-500.0,0.0003863,7]
[314162221,1708033843172,-500.0,0.0003863,7]
[314162222,1708033843181,-500.0,0.0003863,7]
[314162223,1708033843190,-500.0,0.0003863,7]
[314162224,1708033843199,-340.22287207,0.0003863,7]
[314162226,1708033843222,-159.77712793,0.0003863,7]
[314162227,1708033843232,-500.0,0.0003863,7]
[314162228,1708033843241,-1099.45892505,0.0003863,7]
[314162229,1708033843253,-824.0,0.0003863,7]
[314162230,1708033843264,-145.90107495,0.0003863,7]
[314162231,1708033843274,-500.0,0.0003863,7]
[314162232,1708033843283,-500.0,0.0003863,7]
[314162233,1708033843292,-750.26,0.0003863,7]
[314162234,1708033843301,-500.0,0.0003863,7]
[314162235,1708033843311,-182.43582505,0.0003863,7]
[314162236,1708033843555,-317.56417495,0.0003863,7]
[314162237,1708033843565,-500.0,0.0003863,2]
[314162238,1708033843574,-500.0,0.0003863,7]
[314162239,1708033843583,-539.01,0.0003863,7]
[314162240,1708033843593,-500.0,0.0003863,7]
[314162241,1708033843604,-500.0,0.0003863,7]
[314162242,1708033843613,-500.0,0.0003863,7]
[314162243,1708033843622,-500.0,0.0003863,7]
[314162244,1708033843632,-500.0,0.0003863,7]
[314162245,1708033843641,-500.0,0.0003863,7]
[314162246,1708033843651,-324.67552506,0.0003863,7]
[314162247,1708033843876,-3894.11207821,0.00038,10]
[314162248,1708033843886,-500.0,0.00038356,7]
[314162249,1708033843895,-175.32447494,0.0003863,7]
[314162250,1708033843904,-500.0,0.0003863,7]
[314162251,1708033843913,-500.0,0.0003863,7]
[314162252,1708033843922,-500.0,0.0003863,7]
[314162253,1708033843932,-500.0,0.0003863,7]
[314162254,1708033843941,-500.0,0.0003863,7]
[314162255,1708033843950,-500.0,0.0003863,7]
[314162256,1708033843959,-500.0,0.0003863,7]
[314162257,1708033843968,-500.0,0.0003863,7]
[314162258,1708033843977,-500.0,0.0003863,7]
[314162259,1708033843986,-500.0,0.0003863,7]
[314162260,1708033843995,-500.0,0.0003863,7]
[314162261,1708033844005,-248.46344685,0.0003863,7]
[314162262,1708033844017,-251.53655315,0.0003863,7]
[314162263,1708033844026,-444.88383586,0.0003863,7]
[314162264,1708033844038,-55.11616414,0.0003863,7]
[314162265,1708033844048,-500.0,0.0003863,7]
[314162266,1708033844059,-500.0,0.0003863,7]
[314162267,1708033844068,-500.0,0.0003863,7]
[314162268,1708033844077,-500.0,0.0003863,7]
[314162269,1708033844087,-500.0,0.0003863,7]
[314162270,1708033844096,-606.86,0.0003863,7]
[314162271,1708033844105,-500.0,0.0003863,7]
[314162272,1708033844114,-500.0,0.0003863,7]
[314162273,1708033844124,-500.0,0.0003863,7]
[314162274,1708033844133,-500.0,0.0003863,7]
[314162275,1708033844141,-457.32864483,0.0003863,7]
[314162276,1708033844158,-42.67135517,0.0003863,7]
[314162277,1708033844167,-500.0,0.0003863,7]
[314162278,1708033844176,-500.0,0.0003863,7]
[314162279,1708033844186,-500.0,0.0003863,7]
[314162280,1708033844195,-500.0,0.0003863,7]
[314162281,1708033844205,-500.0,0.0003863,7]
[314162282,1708033844214,-500.0,0.0003863,7]
[314162283,1708033844223,-500.0,0.0003863,7]
[314162284,1708033844232,-500.0,0.0003863,7]
[314162285,1708033844242,-500.0,0.0003863,7]
[314162286,1708033844251,-500.0,0.0003863,7]
[314162287,1708033844260,-1140.56,0.0003863,7]
[314162288,1708033844270,-500.0,0.0003863,7]
[314162289,1708033844279,-500.0,0.0003863,7]
[314162290,1708033844288,-500.0,0.0003863,7]
[314162291,1708033844298,-500.0,0.0003863,7]
[314162292,1708033844307,-500.0,0.0003863,7]
[314162293,1708033844316,-500.0,0.0003863,7]
[314162294,1708033844325,-631.74,0.0003863,7]
[314162295,1708033844335,-507.09,0.0003863,7]
[314162296,1708033844345,-500.0,0.0003863,7]
[314162297,1708033844354,-500.0,0.0003863,7]
[314162298,1708033844364,-500.0,0.0003863,7]
[314162299,1708033844373,-500.0,0.0003863,7]
[314162300,1708033844382,-500.0,0.0003863,7]
[314162301,1708033844391,-500.0,0.0003863,7]
[314162302,1708033844400,-500.0,0.0003863,7]
[314162303,1708033844410,-500.0,0.0003863,7]
[314162304,1708033844420,-500.0,0.0003863,7]
[314162305,1708033844431,-500.0,0.0003863,7]
[314162306,1708033844441,-229.89893227,0.0003863,7]
[314162307,1708033844450,-500.0,0.0003863,7]
[314162308,1708033844459,-500.0,0.0003863,7]
[314162309,1708033844470,-500.0,0.0003863,7]
[314162310,1708033844479,-507.23,0.0003863,7]
[314162311,1708033844489,-500.0,0.0003863,7]
[314162312,1708033844498,-500.0,0.0003863,7]
[314162313,1708033844508,-500.0,0.0003863,7]
[314162314,1708033844518,-500.0,0.0003863,7]
[314162315,1708033844527,-500.0,0.0003863,7]
[314162316,1708033844537,-1605.99,0.0003863,7]
[314162317,1708033844547,-500.0,0.0003863,7]
[314162318,1708033844556,-500.0,0.0003863,7]
[314162319,1708033844565,-500.0,0.0003863,7]
[314162320,1708033844575,-500.0,0.0003863,7]
[314162321,1708033844585,-854.94,0.0003863,7]
[314162322,1708033844595,-500.0,0.0003863,7]
[314162323,1708033844605,-500.0,0.0003863,7]
[314162324,1708033844614,-500.0,0.0003863,7]
[314162325,1708033844623,-500.0,0.0003863,7]
[314162326,1708033844632,-500.0,0.0003863,7]
[314162327,1708033844641,-500.0,0.0003863,7]
[314162328,1708033844651,-735.08,0.0003863,7]
[314162329,1708033844660,-500.0,0.0003863,7]
[314162330,1708033844812,-500.0,0.0003863,7]
[314162331,1708033844822,-500.0,0.0003863,7]
[314162332,1708033844833,-500.0,0.0003863,7]
[314162333,1708033844842,-500.0,0.0003863,7]
[314162334,1708033844853,-709.25,0.0003863,7]
[314162335,1708033844862,-500.0,0.0003863,7]
[314162336,1708033844871,-500.0,0.0003863,7]
[314162337,1708033844881,-500.0,0.0003863,7]
[314162338,1708033844891,-500.0,0.0003863,7]
[314162339,1708033844900,-535.93,0.0003863,7]
[314162340,1708033844910,-8241.29,0.0003863,7]
[314162341,1708033844919,-500.0,0.0003863,7]
[314162342,1708033844928,-500.0,0.0003863,7]
[314162343,1708033844938,-500.0,0.0003863,7]
[314162344,1708033844947,-500.0,0.0003863,7]
[314162345,1708033844957,-794.94,0.0003863,7]
[314162346,1708033844966,-500.0,0.0003863,7]
[314162347,1708033844975,-500.0,0.0003863,7]
[314162348,1708033844984,-500.0,0.0003863,2]
[314162349,1708033844995,-500.0,0.0003863,7]
[314162350,1708033845005,-500.0,0.0003863,7]
[314162351,1708033845014,-1318.32,0.0003863,7]
[314162352,1708033845024,-500.0,0.0003863,7]
[314162353,1708033845033,-500.0,0.0003863,7]
[314162354,1708033845042,-500.0,0.0003863,7]
[314162355,1708033845052,-500.0,0.0003863,7]
[314162356,1708033845062,-391.32,0.00038634,2]
[314162357,1708033845071,-218.0,0.0003864,2]
[314162358,1708033845080,-234.021624,0.00038648,27]
[314162359,1708033845090,-743.54531023,0.00038667,2]
[314162360,1708033845100,-151.0,0.0003867,120]
[314162361,1708033845109,-535.72258615,0.00038697,2]
[314162362,1708033845119,-234.021624,0.00038748,24]
[314162363,1708033845128,-1870.33,0.0003877,7]
[314162364,1708033845138,-1870.33,0.0003877,7]
[314162365,1708033845148,-1870.33,0.0003877,7]
[314162366,1708033845158,-1870.33,0.0003877,7]
[314162367,1708033845168,-234.021624,0.00038848,25]
[314162368,1708033845177,-205.0,0.00038854,6]
[314162369,1708033845187,-200.0,0.0003888,15]
[314162370,1708033845196,-150.0,0.0003889,2]
[314162371,1708033845206,-78106.3675211,0.00038894,3]
[314162372,1708033845215,-155.0,0.000389,2]
[314162373,1708033845224,-158.27503926,0.000389,20]
[314162374,1708033845233,-353.38,0.000389,2]
[314162375,1708033845243,-500.0,0.00038904,7]
[314162376,1708033845252,-500.0,0.00038904,2]
[314162377,1708033845261,-500.0,0.00038904,7]
[314162378,1708033845271,-500.0,0.00038904,7]
[314162379,1708033845281,-500.0,0.00038904,7]
[314162380,1708033845290,-500.0,0.00038904,7]
[314162381,1708033845299,-500.0,0.00038904,7]
[314162382,1708033845309,-500.0,0.00038904,7]
[314162383,1708033845318,-500.0,0.00038904,7]
[314162384,1708033845327,-500.0,0.00038904,7]
[314162385,1708033845337,-164.52,0.00038904,7]
[314162386,1708033845347,-500.0,0.00038904,7]
[314162387,1708033845356,-500.0,0.00038904,7]
[314162388,1708033845365,-500.0,0.00038904,7]
[314162389,1708033845375,-500.0,0.00038904,7]
[314162390,1708033845384,-500.0,0.00038904,7]
[314162391,1708033845394,-500.0,0.00038904,7]
[314162392,1708033845403,-500.0,0.00038904,7]
[314162393,1708033845412,-500.0,0.00038904,7]
[314162394,1708033845424,-500.0,0.00038904,7]
[314162395,1708033845438,-500.0,0.00038904,7]
[314162396,1708033845448,-500.0,0.00038904,7]
[314162397,1708033845457,-500.0,0.00038904,7]
[314162398,1708033845467,-500.0,0.00038904,7]
[314162399,1708033845477,-608.41532139,0.00038904,7]
[314162400,1708033845486,-500.0,0.00038904,7]
[314162401,1708033845495,-160.12032673,0.00038904,7]
[314162402,1708033845505,-500.0,0.00038904,7]
[314162403,1708033845515,-500.0,0.00038904,7]
[314162404,1708033845525,-500.0,0.00038904,7]
[314162405,1708033845534,-500.0,0.00038904,7]
[314162406,1708033845544,-829.13,0.00038904,7]
[314162407,1708033845553,-500.0,0.00038904,7]
[314162408,1708033845562,-748.56,0.00038904,7]
[314162409,1708033845572,-610.08,0.00038904,7]
[314162410,1708033845581,-500.0,0.00038904,7]
[314162411,1708033845591,-500.0,0.00038904,7]
[314162412,1708033845602,-547.41,0.00038904,7]
[314162413,1708033845611,-500.0,0.00038904,7]
[314162414,1708033845621,-500.0,0.00038904,7]
[314162415,1708033845630,-500.0,0.00038904,7]
[314162417,1708033845640,-522.47664279,0.00038904,7]
[314162418,1708033845650,-500.0,0.00038904,7]
[314162419,1708033845659,-500.0,0.00038904,7]
[314162420,1708033845669,-2069.36,0.00038904,7]
[314162421,1708033845678,-500.0,0.00038904,7]
[314162422,1708033845687,-500.0,0.00038904,7]
[314162423,1708033845697,-750.26,0.00038904,7]
[314162425,1708033845706,-500.0,0.00038904,7]
[314162427,1708033845716,-500.0,0.00038904,7]
[314162428,1708033845725,-539.01,0.00038904,7]
[314162430,1708033845735,-321.56731359,0.00038904,7]
[314162431,1708033845744,-500.0,0.00038904,7]
[314162432,1708033845754,-500.0,0.00038904,7]
[314162433,1708033845763,-500.0,0.00038904,7]
[314162434,1708033845772,-500.0,0.00038904,7]
[314162435,1708033845781,-500.0,0.00038904,7]
[314162436,1708033845790,-500.0,0.00038904,7]
[314162437,1708033845800,-500.0,0.00038904,7]
[314162438,1708033845809,-500.0,0.00038904,7]
[314162439,1708033845818,-500.0,0.00038904,7]
[314162441,1708033845828,-500.0,0.00038904,7]
[314162442,1708033845837,-500.0,0.00038904,7]
[314162443,1708033845848,-606.86,0.00038904,7]
[314162444,1708033845857,-500.0,0.00038904,7]
[314162445,1708033845865,-500.0,0.00038904,7]
[314162446,1708033845874,-500.0,0.00038904,7]
[314162447,1708033845883,-500.0,0.00038904,7]
[314162448,1708033845893,-500.0,0.00038904,7]
[314162449,1708033845902,-500.0,0.00038904,7]
[314162450,1708033845911,-500.0,0.00038904,7]
[314162451,1708033845920,-500.0,0.00038904,7]
[314162452,1708033845929,-500.0,0.00038904,7]
[314162453,1708033845939,-1140.56,0.00038904,7]
[314162454,1708033845948,-500.0,0.00038904,7]
[314162455,1708033845958,-500.0,0.00038904,7]
[314162456,1708033845968,-500.0,0.00038904,7]
[314162457,1708033845977,-500.0,0.00038904,7]
[314162458,1708033845986,-631.74,0.00038904,7]
[314162459,1708033845996,-507.09,0.00038904,7]
[314162460,1708033846005,-500.0,0.00038904,7]
[314162461,1708033846014,-500.0,0.00038904,7]
[314162462,1708033846023,-500.0,0.00038904,7]
[314162463,1708033846033,-500.0,0.00038904,7]
[314162464,1708033846042,-500.0,0.00038904,7]
[314162465,1708033846051,-500.0,0.00038904,7]
[314162466,1708033846061,-500.0,0.00038904,7]
[314162467,1708033846071,-620.99,0.00038904,7]
[314162468,1708033846080,-507.23,0.00038904,7]
[314162469,1708033846089,-500.0,0.00038904,7]
[314162470,1708033846099,-500.0,0.00038904,7]
[314162471,1708033846108,-500.0,0.00038904,7]
[314162472,1708033846117,-500.0,0.00038904,7]
[314162473,1708033846126,-500.0,0.00038904,7]
[314162474,1708033846136,-1605.99,0.00038904,7]
[314162475,1708033846145,-500.0,0.00038904,7]
[314162476,1708033846154,-500.0,0.00038904,7]
[314162477,1708033846163,-486.2216543,0.00038904,7]
[314162478,1708033846172,-854.94,0.00038904,7]
[314162479,1708033846181,-500.0,0.00038904,7]
[314162480,1708033846191,-500.0,0.00038904,7]
[314162481,1708033846200,-500.0,0.00038904,7]
[314162482,1708033846209,-735.08,0.00038904,7]
[314162483,1708033846218,-500.0,0.00038904,7]
[314162484,1708033846227,-500.0,0.00038904,7]
[314162485,1708033846236,-500.0,0.00038904,7]
[314162486,1708033846245,-500.0,0.00038904,7]
[314162487,1708033846254,-500.0,0.00038904,7]
[314162488,1708033846264,-709.25,0.00038904,7]
[314162489,1708033846273,-500.0,0.00038904,7]
[314162490,1708033846282,-500.0,0.00038904,7]
[314162491,1708033846292,-500.0,0.00038904,7]
[314162492,1708033846301,-535.93,0.00038904,7]
[314162493,1708033846311,-8241.29,0.00038904,7]
[314162494,1708033846320,-500.0,0.00038904,7]
[314162496,1708033846330,-500.0,0.00038904,7]
[314162498,1708033846340,-500.0,0.00038904,7]
[314162499,1708033846350,-555.41858535,0.00038904,7]
[314162500,1708033846360,-794.94,0.00038904,7]
[314162501,1708033846369,-500.0,0.00038904,7]
[314162502,1708033846378,-500.0,0.00038904,7]
[314162503,1708033846387,-565.36238069,0.00038904,2]
[314162504,1708033846396,-1318.32,0.00038904,7]
[314162505,1708033846406,-402.79667361,0.00038904,7]
[314162506,1708033846415,-500.0,0.00038904,7]
[314162507,1708033846430,-500.0,0.00038904,7]
[314162508,1708033846439,-234.021624,0.00038948,26]
[314162509,1708033846449,-260.07690583,0.00038999,2]
[314162510,1708033846457,-1000.0,0.00039,60]
[314162511,1708033846467,-1870.33,0.00039044,7]
[314162512,1708033846476,-1870.33,0.00039044,7]
[314162513,1708033846486,-234.021624,0.00039048,27]
[314162514,1708033846496,-743.54531023,0.00039078,2]
[314162515,1708033846505,-163.63,0.00039137,2]
[314162516,1708033846516,-535.72258615,0.00039137,2]
[314162517,1708033846525,-234.021624,0.00039148,24]
[314162518,1708033846535,-78106.3675211,0.00039168,4]
[314162519,1708033846544,-2688.4145257,0.00039177,9]
[314162520,1708033846553,-500.0,0.00039178,7]
[314162521,1708033846562,-500.0,0.00039178,7]
[314162522,1708033846571,-500.0,0.00039178,7]
[314162523,1708033846581,-199.85920608,0.00039178,7]
[314162524,1708033846590,-628.9877523,0.00039178,7]
[314162525,1708033846602,-500.0,0.00039178,7]
[314162526,1708033846611,-500.0,0.00039178,7]
[314162527,1708033846621,-500.0,0.00039178,7]
[314162528,1708033846630,-500.0,0.00039178,7]
[314162529,1708033846640,-500.0,0.00039178,7]
[314162530,1708033846650,-500.0,0.00039178,7]
[314162531,1708033846659,-500.0,0.00039178,7]
[314162532,1708033846669,-829.13,0.00039178,7]
[314162533,1708033846678,-748.56,0.00039178,7]
[314162534,1708033846688,-610.08,0.00039178,7]
[314162535,1708033846699,-500.0,0.00039178,7]
[314162536,1708033846709,-500.0,0.00039178,7]
[314162537,1708033846719,-547.41,0.00039178,7]
[314162538,1708033846728,-500.0,0.00039178,7]
[314162539,1708033846738,-500.0,0.00039178,7]
[314162540,1708033846748,-500.0,0.00039178,7]
[314162541,1708033846758,-2069.36,0.00039178,7]
[314162542,1708033846768,-500.0,0.00039178,7]
[314162543,1708033846778,-500.0,0.00039178,7]
[314162544,1708033846788,-750.26,0.00039178,7]
[314162545,1708033846798,-326.5,0.00039178,7]
[314162546,1708033846808,-539.01,0.00039178,7]
[314162547,1708033846819,-500.0,0.00039178,7]
[314162548,1708033846828,-500.0,0.00039178,7]
[314162549,1708033846841,-500.0,0.00039178,7]
[314162550,1708033846851,-500.0,0.00039178,7]
[314162551,1708033846860,-500.0,0.00039178,7]
[314162552,1708033846870,-606.86,0.00039178,7]
[314162553,1708033846882,-500.0,0.00039178,7]
[314162554,1708033846891,-1140.56,0.00039178,7]
[314162555,1708033846901,-170.5205972,0.00039178,7]
[314162556,1708033846910,-631.74,0.00039178,7]
[314162557,1708033846920,-507.09,0.00039178,7]
[314162558,1708033846930,-500.0,0.00039178,7]
[314162559,1708033846939,-500.0,0.00039178,7]
[314162560,1708033846949,-336.25588189,0.00039178,7]
[314162561,1708033846961,-500.0,0.00039178,7]
[314162562,1708033846971,-507.23,0.00039178,7]
[314162563,1708033846981,-500.0,0.00039178,7]
[314162564,1708033846990,-500.0,0.00039178,7]
[314162565,1708033846999,-500.0,0.00039178,7]
[314162566,1708033847008,-500.0,0.00039178,7]
[314162567,1708033847017,-1605.99,0.00039178,7]
[314162568,1708033847027,-854.94,0.00039178,7]
[314162569,1708033847036,-606.03496652,0.00039178,7]
[314162570,1708033847046,-500.0,0.00039178,7]
[314162571,1708033847057,-735.08,0.00039178,7]
[314162572,1708033847067,-500.0,0.00039178,7]
[314162573,1708033847078,-500.0,0.00039178,7]
[314162574,1708033847088,-500.0,0.00039178,7]
[314162575,1708033847097,-709.25,0.00039178,7]
[314162576,1708033847108,-535.93,0.00039178,7]
[314162577,1708033847118,-500.0,0.00039178,7]
[314162578,1708033847128,-8241.29,0.00039178,7]
[314162579,1708033847138,-794.94,0.00039178,7]
[314162580,1708033847148,-1318.32,0.00039178,7]
[314162581,1708033847159,-500.0,0.00039178,7]
[314162582,1708033847170,-20360.55967187,0.0003919,12]
[314162583,1708033847182,-234.021624,0.00039248,25]
[314162584,1708033847225,-277.58,0.0003926,2]
[314162585,1708033847235,-188.93,0.0003927,2]
[314162586,1708033847245,-632.25,0.000393,3]
[314162587,1708033847256,-632.25,0.000393,3]
[314162588,1708033847267,-632.25,0.000393,3]
[314162589,1708033847275,-632.25,0.000393,3]
[314162590,1708033847286,-632.25,0.000393,3]
[314162591,1708033847297,-632.25,0.000393,3]
[314162592,1708033847308,-632.25,0.000393,3]
[314162593,1708033847318,-632.25,0.000393,3]
[314162594,1708033847328,-632.25,0.000393,3]
[314162595,1708033847338,-632.25,0.000393,3]
[314162596,1708033847348,-632.25,0.000393,3]
[314162597,1708033847358,-632.25,0.000393,3]
[314162598,1708033847369,-632.25,0.000393,3]
[314162599,1708033847379,-632.25,0.000393,3]
[314162600,1708033847388,-632.25,0.000393,3]
[314162601,1708033847399,-632.25,0.000393,3]
[314162602,1708033847410,-632.25,0.000393,3]
[314162603,1708033847420,-632.25,0.000393,3]
[314162604,1708033847432,-632.25,0.000393,3]
[314162605,1708033847442,-632.25,0.000393,3]
[314162606,1708033847450,-154.02,0.000393,3]
[314162607,1708033847460,-154.02,0.000393,3]
[314162608,1708033847471,-454.3599342,0.000393,2]
[314162609,1708033847480,-171.54988102,0.000393,2]
[314162610,1708033847489,-508.54382515,0.000393,2]
[314162611,1708033847499,-63456.80188192,0.00039312,2]
[314162612,1708033847511,-1870.33,0.00039317,7]
[314162613,1708033847521,-1870.33,0.00039317,7]
[314162614,1708033847531,-234.021624,0.00039348,26]
[314162615,1708033847540,-18551.7818758,0.00039382,4]
[314162616,1708033847557,-59554.5856453,0.00039382,4]
[314162617,1708033847567,-151.0,0.000394,7]
[314162618,1708033847576,-150.0,0.00039412,30]
[314162619,1708033847585,-163.0,0.0003944,7]
[314162620,1708033847595,-234.021624,0.00039448,27]
[314162621,1708033847606,-500.0,0.00039452,7]
[314162622,1708033847616,-500.0,0.00039452,7]
[314162623,1708033847625,-342.90386106,0.00039452,7]
[314162624,1708033847634,-500.0,0.00039452,7]
[314162625,1708033847643,-500.0,0.00039452,7]
[314162626,1708033847653,-500.0,0.00039452,7]
[314162627,1708033847663,-500.0,0.00039452,7]
[314162628,1708033847672,-500.0,0.00039452,7]
[314162629,1708033847681,-500.0,0.00039452,7]
[314162630,1708033847691,-829.13,0.00039452,7]
[314162631,1708033847700,-748.56,0.00039452,7]
[314162632,1708033847710,-610.08,0.00039452,7]
[314162633,1708033847718,-500.0,0.00039452,7]
[314162634,1708033847728,-500.0,0.00039452,7]
[314162635,1708033847738,-547.41,0.00039452,7]
[314162636,1708033847748,-402.78135111,0.00039452,7]
[314162637,1708033847757,-500.0,0.00039452,7]
[314162638,1708033847767,-500.0,0.00039452,7]
[314162639,1708033847776,-2069.36,0.00039452,7]
[314162640,1708033847785,-500.0,0.00039452,7]
[314162641,1708033847794,-204.38115332,0.00039452,7]
[314162642,1708033847803,-750.26,0.00039452,7]
[314162643,1708033847812,-539.01,0.00039452,7]
[314162644,1708033847824,-500.0,0.00039452,7]
[314162645,1708033847833,-500.0,0.00039452,7]
[314162646,1708033847842,-500.0,0.00039452,7]
[314162647,1708033847853,-500.0,0.00039452,7]
[314162648,1708033847862,-500.0,0.00039452,7]
[314162649,1708033847872,-606.86,0.00039452,7]
[314162650,1708033847881,-500.0,0.00039452,7]
[314162651,1708033847891,-1140.56,0.00039452,7]
[314162652,1708033847900,-631.74,0.00039452,7]
[314162653,1708033847909,-507.09,0.00039452,7]
[314162654,1708033847919,-500.0,0.00039452,7]
[314162655,1708033847930,-500.0,0.00039452,7]
[314162656,1708033847939,-507.23,0.00039452,7]
[314162657,1708033847949,-500.0,0.00039452,7]
[314162658,1708033847958,-500.0,0.00039452,7]
[314162659,1708033847967,-500.0,0.00039452,7]
[314162660,1708033847976,-1605.99,0.00039452,7]
[314162661,1708033847985,-854.94,0.00039452,7]
[314162662,1708033847994,-735.08,0.00039452,7]
[314162663,1708033848004,-500.0,0.00039452,7]
[314162664,1708033848013,-500.0,0.00039452,7]
[314162665,1708033848022,-709.25,0.00039452,7]
[314162666,1708033848031,-535.93,0.00039452,7]
[314162667,1708033848041,-8241.29,0.00039452,7]
[314162668,1708033848050,-794.94,0.00039452,7]
[314162669,1708033848062,-1318.32,0.00039452,7]
[314162670,1708033848071,-500.0,0.00039452,7]
[314162671,1708033848081,-1644.23220602,0.00039452,2]
[314162672,1708033848093,-159.205528,0.00039452,14]
[314162673,1708033848104,-151.0,0.00039459,30]
[314162674,1708033848113,-155.05,0.00039484,2]
[314162675,1708033848122,-743.54531023,0.00039489,2]
[314162676,1708033848134,-3000.0,0.0003949,2]
[314162677,1708033848144,-252.21,0.000395,2]
[314162678,1708033848154,-1000.0,0.000395,7]
[314162679,1708033848167,-150.0,0.00039516,2]
[314162680,1708033848176,-150.0,0.00039532,2]
[314162681,1708033848186,-150.0,0.00039539,2]
[314162682,1708033848196,-78106.3675211,0.00039542,4]
[314162683,1708033848206,-234.021624,0.00039548,24]
[314162684,1708033848216,-238.139,0.00039552,2]
[314162685,1708033848225,-186.858,0.00039552,2]
[314162686,1708033848235,-2834.0,0.00039552,2]
[314162687,1708033848244,-1864.0,0.00039552,2]
[314162688,1708033848254,-841.0,0.00039552,2]
[314162689,1708033848263,-953.0,0.00039552,2]
[314162690,1708033848272,-1618.888,0.00039552,2]
[314162691,1708033848283,-1231.0,0.00039552,2]
[314162692,1708033848293,-216.0,0.00039552,2]
[314162693,1708033848303,-1254.0,0.00039552,2]
[314162694,1708033848312,-237.0,0.00039552,2]
[314162695,1708033848322,-1003.0,0.00039552,2]
[314162696,1708033848332,-429.0,0.00039552,2]
[314162697,1708033848342,-857.0,0.00039552,2]
[314162698,1708033848352,-451.879,0.00039552,2]
[314162699,1708033848362,-321.0,0.00039552,2]
[314162700,1708033848372,-1138.0,0.00039552,2]
[314162701,1708033848381,-150.0,0.00039552,2]
[314162702,1708033848391,-454.0,0.00039552,2]
[314162703,1708033848401,-150.0,0.00039552,2]
[314162704,1708033848410,-150.0,0.00039552,2]
[314162705,1708033848422,-4207.0,0.00039552,2]
[314162706,1708033848433,-2926.0,0.00039552,2]
[314162707,1708033848443,-8162.0,0.00039552,2]
[314162708,1708033848452,-2289.0,0.00039552,2]
[314162709,1708033848464,-19841.0,0.00039552,2]
[314162710,1708033848473,-1037.0,0.00039552,2]
[314162711,1708033848483,-150.408,0.00039552,2]